fUST/lending_fUST_20240215
["ID","MTS","AMOUNT","RATE_DAILY","PERIOD"]
[314073627,1707958244681,-2190.52690973,0.00033643,2]
[314073629,1707958244693,-2664.00038325,0.00033643,2]
[314073967,1707958247902,-17223.47275869,0.00033643,2]
[314073969,1707958247912,-157.64395396,0.00034956,2]
[314073971,1707958247922,-250.0,0.00035299,15]
[314073973,1707958247932,-3000.0,0.00035559,2]
[314073975,1707958247942,-342.29153844,0.00035799,2]
[314073977,1707958247952,-361.39,0.00036,7]
[314073979,1707958247962,-5000.0,0.00036268,7]
[314073981,1707958247973,-155.0,0.000369,2]
[314073984,1707958247982,-6372.6264508,0.00037,2]
[314073986,1707958247992,-186.9799963,0.00037491,7]
[314073988,1707958248001,-593.15700845,0.00037799,15]
[314073990,1707958248010,-51920.59262951,0.000378,2]
[314073991,1707958248019,-18145.26,0.00037869,4]
[314073993,1707958248028,-436.20556093,0.00037898,14]
[314073995,1707958248037,-192.64443907,0.00037898,14]
[314073997,1707958248047,-500.0,0.00037898,14]
[314073999,1707958248056,-500.0,0.00037898,14]
[314074002,1707958248066,-199.87853,0.00037898,14]
[314074003,1707958248075,-500.0,0.00037898,14]
[314074006,1707958248085,-500.0,0.00037898,14]
[314074008,1707958248094,-548.24,0.00037899,14]
[314074009,1707958248103,-190.86,0.00037899,14]
[314074011,1707958248113,-524.55,0.00037899,14]
[314074014,1707958248122,-441.00262042,0.00037899,14]
[314074016,1707958248131,-500.0,0.00037899,14]
[314074018,1707958248141,-151.0,0.00037899,2]
[314074020,1707958248150,-151.0,0.00037899,2]
[314074022,1707958248160,-151.0,0.00037899,2]
[314074024,1707958248169,-250.0,0.00037899,2]
[314074026,1707958248178,-2000.0,0.000379,33]
[314074027,1707958248187,-151.0,0.000379,2]
[314074029,1707958248197,-194.57748774,0.000379,2]
[314074032,1707958248209,-151.0,0.000379,2]
[314074034,1707958248218,-151.0,0.000379,2]
[314074036,1707958248227,-157.64395396,0.000379,2]
[314074038,1707958248237,-2000.0,0.0003791,33]
[314074039,1707958248246,-2536.681733,0.0003792,33]
[314074042,1707958248255,-194.57748768,0.00037988,2]
[314074044,1707958248265,-12924.22800723,0.0003799,120]
[314074046,1707958248278,-300.0,0.0003799,120]
[314074917,1707958456663,155.19254407,0.000176,2]
[314075013,1707959432275,-581.89730117,0.00026191,2]
[314075014,1707959432285,-207.8204647,0.00026191,2]
[314075015,1707959432294,-2642.89019684,0.000275,2]
[314075016,1707959432342,-325.14397417,0.000275,2]
[314075017,1707959432354,-17106.06422826,0.000275,2]
[314075018,1707959432363,-835.84242247,0.00029,2]
[314075019,1707959432372,-17546.91717739,0.00029,2]
[314075020,1707959432381,-200.0,0.00030249,15]
[314075021,1707959432390,-1860.63101559,0.00032109,4]
[314075022,1707959432399,-10202.75777059,0.0003212,4]
[314075024,1707959432408,-3558.6,0.00032793,3]
[314075026,1707959432417,-13465.37887274,0.00032803,2]
[314075028,1707959432429,-439.565,0.00032803,2]
[314075086,1707959438497,-2020.61027982,0.00032132,4]
[314075087,1707959438507,-10995.05612726,0.00032803,2]
[314075088,1707959438517,-280.0,0.00033274,15]
[314075089,1707959438526,-228.19435896,0.00035799,2]
[314075090,1707959438536,-5000.0,0.00036274,7]
[314075091,1707959438545,-151.27683661,0.00036311,2]
[314075092,1707959438554,-391.0,0.00036601,15]
[314075093,1707959438563,-167.633153,0.00036726,2]
[314075094,1707959438572,-155.0,0.00036899,2]
[314075095,1707959438582,-2839.72660945,0.000376,60]
[314075096,1707959438591,-504.84747306,0.00037808,14]
[314075097,1707959438600,-500.0,0.00037808,14]
[314075098,1707959438610,-500.0,0.00037808,14]
[314075099,1707959438619,-500.0,0.00037868,14]
[314075100,1707959438629,-511.34206876,0.00037868,14]
[314075101,1707959438638,-500.0,0.00037868,14]
[314075102,1707959438647,-500.0,0.00037868,14]
[314075103,1707959438656,-500.0,0.00037868,14]
[314075104,1707959438666,-504.8848888,0.00037868,14]
[314075105,1707959438675,-500.0,0.00037868,14]
[314075106,1707959438684,-603.46,0.00037868,14]
[314075107,1707959438694,-500.0,0.00037868,14]
[314075108,1707959438703,-200.0,0.00037868,14]
[314075109,1707959438712,-500.0,0.00037868,14]
[314075110,1707959438720,-2584.66,0.00037898,2]
[314075111,1707959438730,-2584.66,0.00037898,2]
[314075112,1707959438739,-2584.66,0.00037898,2]
[314075113,1707959438749,-2584.66,0.00037898,2]
[314075114,1707959438758,-2584.66,0.00037898,2]
[314075115,1707959438768,-2584.66,0.00037898,2]
[314075116,1707959438777,-2584.66,0.00037898,2]
[314075117,1707959438787,-2584.66,0.00037898,2]
[314075118,1707959438797,-2584.66,0.00037898,2]
[314075119,1707959438806,-2584.66,0.00037898,2]
[314075120,1707959438817,-327.95238013,0.00037898,14]
[314075121,1707959438826,-500.0,0.00037898,14]
[314075122,1707959438836,-500.0,0.00037898,14]
[314075123,1707959438845,-500.0,0.00037898,14]
[314075124,1707959438854,-151.0,0.00037898,2]
[314075125,1707959438863,-280.46721,0.00037898,2]
[314075126,1707959438872,-605.01232788,0.00037898,14]
[314075127,1707959438881,-296.78578,0.00037898,2]
[314075128,1707959438891,-220.0,0.00037898,2]
[314075129,1707959438901,-220.0,0.00037898,2]
[314075130,1707959438910,-220.0,0.00037898,2]
[314075131,1707959439023,-220.0,0.00037898,2]
[314075132,1707959439034,-183.32881297,0.00037898,2]
[314075133,1707959439043,-250.0,0.00037898,2]
[314075134,1707959439052,-19752.26617625,0.00037899,2]
[314075135,1707959439067,-2798.80336675,0.00037899,2]
[314075136,1707959439080,-29196.51034008,0.00037899,2]
[314075161,1707959441612,-2470.14341978,0.00037899,2]
[314075162,1707959441625,-2027.22830977,0.00037899,2]
[314075175,1707959444964,-8061.68383457,0.00037899,2]
[314075176,1707959444976,-6791.15828519,0.00037899,2]
[314075177,1707959444988,-342.19007201,0.00037899,2]
[314075317,1707960638671,-180.21022186,0.00032069,2]
[314075319,1707960638681,-831.79561934,0.00032102,4]
[314075321,1707960638694,-106.16357744,0.00032102,4]
[314075324,1707960638704,-152.12957264,0.00035799,2]
[314075326,1707960638713,-3899.42046155,0.00036847,2]
[314075329,1707960638724,-2199.44577332,0.00036847,2]
[314075332,1707960638738,-1424.35157719,0.00036847,2]
[314079092,1707961838858,-183.10754912,0.00026191,2]
[314079094,1707961838868,-846.47248096,0.00032004,4]
[314079096,1707961838878,-457.5164606,0.00032004,2]
[314079269,1707961842059,-716.18639844,0.00032004,2]
[314079270,1707961842068,-281.38775904,0.00032024,2]
[314079271,1707961842078,-4759.84240842,0.0003587,2]
[314079272,1707961842089,-3171.72312632,0.0003587,2]
[314079273,1707961842101,-13036.22535313,0.0003587,2]
[314079285,1707961843826,-349.48034949,0.0003587,2]
[314079297,1707961847351,-1111.96,0.0003587,2]
[314079307,1707962065842,1203.66111718,0.00021,2]
[314079308,1707962066449,176.52785009,0.00021,2]
[314079377,1707963031890,-1036.2904756,0.00022,2]
[314079378,1707963031905,-968.3124837,0.00022,2]
[314079379,1707963031916,-248.63270474,0.000293,2]
[314079380,1707963031927,-166.666666,0.00029664,2]
[314079381,1707963031936,-200.0,0.00030016,2]
[314079382,1707963031946,-1053.25612998,0.00030068,2]
[314079383,1707963031957,-166.666666,0.00030472,2]
[314079384,1707963031967,-13860.34750398,0.00030562,2]
[314079411,1707963037994,-11039.65249602,0.00030562,2]
[314079413,1707963038003,-166.666666,0.00031281,2]
[314079415,1707963038013,-266.30984898,0.00031899,2]
[314079417,1707963038022,-5316.79,0.00031989,3]
[314079419,1707963038031,-2788.14,0.0003199,3]
[314079421,1707963038040,-4430.66,0.0003199,3]
[314079423,1707963038050,-500.0,0.00031998,2]
[314079425,1707963038059,-633.14,0.00031999,2]
[314079427,1707963038069,-633.14,0.00031999,2]
[314079429,1707963038078,-633.14,0.00031999,2]
[314079432,1707963038087,-633.14,0.00031999,2]
[314079434,1707963038096,-633.14,0.00031999,2]
[314079435,1707963038105,-633.14,0.00031999,2]
[314079437,1707963038115,-633.14,0.00031999,2]
[314079440,1707963038125,-151.0,0.00031999,2]
[314079442,1707963038134,-239.38207,0.00031999,2]
[314079444,1707963038143,-239.38207,0.00031999,2]
[314079445,1707963038152,-343.544846,0.00031999,2]
[314079446,1707963038161,-343.544846,0.00031999,2]
[314079447,1707963038171,-500.0,0.00031999,2]
[314079448,1707963038180,-512.84940829,0.00031999,2]
[314079449,1707963038189,-500.0,0.00031999,7]
[314079450,1707963038197,-500.0,0.00031999,7]
[314079451,1707963038206,-500.0,0.00031999,7]
[314079452,1707963038214,-500.0,0.00031999,7]
[314079453,1707963038223,-500.0,0.00031999,7]
[314079454,1707963038231,-203.19868028,0.00031999,7]
[314079455,1707963038240,-500.0,0.00031999,7]
[314079456,1707963038249,-505.14731737,0.00031999,7]
[314079457,1707963038257,-500.0,0.00031999,7]
[314079458,1707963038266,-500.0,0.00031999,7]
[314079459,1707963038275,-176.31657515,0.00031999,7]
[314079460,1707963038284,-500.0,0.00031999,7]
[314079462,1707963038293,-500.0,0.00031999,7]
[314079473,1707963038398,-579.26071784,0.00031999,7]
[314079476,1707963038409,-500.0,0.00031999,7]
[314079478,1707963038419,-500.0,0.00031999,7]
[314079480,1707963038428,-483.35526833,0.00031999,7]
[314079482,1707963038437,-500.0,0.00031999,7]
[314079484,1707963038447,-389.13362635,0.00031999,7]
[314079486,1707963038455,-500.0,0.00031999,7]
[314079488,1707963038465,-500.0,0.00031999,7]
[314079489,1707963038474,-500.0,0.00031999,7]
[314079491,1707963038483,-500.0,0.00031999,7]
[314079493,1707963038493,-500.0,0.00031999,7]
[314079495,1707963038502,-500.0,0.00031999,7]
[314079497,1707963038512,-500.0,0.00031999,7]
[314079499,1707963038521,-437.89855876,0.00031999,7]
[314079501,1707963038530,-390.16407989,0.00031999,7]
[314079503,1707963038539,-500.0,0.00031999,7]
[314079505,1707963038548,-500.0,0.00031999,7]
[314079507,1707963038557,-500.0,0.00031999,7]
[314079509,1707963038566,-500.0,0.00031999,7]
[314079511,1707963038575,-500.0,0.00031999,7]
[314079513,1707963038584,-500.0,0.00031999,7]
[314079515,1707963038593,-500.0,0.00031999,7]
[314079517,1707963038603,-500.0,0.00031999,7]
[314079519,1707963038612,-500.0,0.00031999,7]
[314079521,1707963038622,-500.0,0.00031999,7]
[314079523,1707963038631,-500.0,0.00031999,7]
[314079525,1707963038640,-500.0,0.00031999,7]
[314079527,1707963038649,-500.0,0.00031999,7]
[314079529,1707963038658,-500.0,0.00031999,7]
[314079531,1707963038669,-500.0,0.00031999,7]
[314079533,1707963038678,-500.0,0.00031999,7]
[314079535,1707963038687,-429.34806347,0.00031999,7]
[314079538,1707963038697,-500.0,0.00031999,7]
[314079539,1707963038706,-500.0,0.00031999,7]
[314079541,1707963038715,-500.0,0.00031999,7]
[314079543,1707963038724,-500.0,0.00031999,7]
[314079545,1707963038734,-500.0,0.00031999,7]
[314079547,1707963038743,-500.0,0.00031999,7]
[314079549,1707963038752,-500.0,0.00031999,7]
[314079552,1707963038761,-500.0,0.00031999,7]
[314079554,1707963038771,-500.0,0.00031999,7]
[314079556,1707963038780,-500.0,0.00031999,7]
[314079558,1707963038789,-500.0,0.00031999,7]
[314079559,1707963038798,-500.0,0.00031999,7]
[314079562,1707963038807,-500.0,0.00031999,7]
[314079564,1707963038817,-500.0,0.00031999,7]
[314079566,1707963038827,-500.0,0.00031999,7]
[314079568,1707963038836,-500.0,0.00031999,7]
[314079569,1707963038845,-500.0,0.00031999,7]
[314079572,1707963038854,-500.0,0.00031999,7]
[314079574,1707963038863,-500.0,0.00031999,7]
[314079575,1707963038873,-500.0,0.00031999,7]
[314079577,1707963038882,-500.0,0.00031999,7]
[314079579,1707963038891,-250.0,0.00031999,7]
[314079581,1707963038900,-50000.0,0.00032,4]
[314079584,1707963038909,-72950.83145357,0.00032,4]
[314079585,1707963038920,-2345.44698148,0.00032,15]
[314079588,1707963038929,-151.0,0.00032,2]
[314079590,1707963038938,-151.0,0.00032,2]
[314079592,1707963038948,-151.0,0.00032,2]
[314079593,1707963038957,-151.0,0.00032,2]
[314079596,1707963038967,-151.0,0.00032,2]
[314079598,1707963038976,-204.252058,0.00032,2]
[314079600,1707963038985,-151.0,0.00032,2]
[314079602,1707963038995,-151.0,0.00032,2]
[314079603,1707963039005,-239.38207,0.00032,2]
[314079605,1707963039015,-239.38207,0.00032,2]
[314079607,1707963039024,-239.38207,0.00032,2]
[314079610,1707963039033,-239.38207,0.00032,2]
[314079612,1707963039043,-343.544846,0.00032,2]
[314079614,1707963039051,-343.544846,0.00032,2]
[314079615,1707963039060,-343.544846,0.00032,2]
[314079617,1707963039070,-343.544846,0.00032,2]
[314079620,1707963039080,-998.656612,0.00032,2]
[314079622,1707963039088,-998.656612,0.00032,2]
[314079624,1707963039098,-998.656612,0.00032,2]
[314079626,1707963039107,-998.656612,0.00032,2]
[314079628,1707963039116,-998.656612,0.00032,2]
[314079630,1707963039125,-998.656612,0.00032,2]
[314079632,1707963039134,-1069.203409,0.00032,2]
[314079634,1707963039143,-1069.203409,0.00032,2]
[314079636,1707963039153,-1069.203409,0.00032,2]
[314079638,1707963039162,-1069.203409,0.00032,2]
[314079640,1707963039174,-1069.203409,0.00032,2]
[314079642,1707963039183,-1069.203409,0.00032,2]
[314079644,1707963039192,-166.666666,0.0003209,2]
[314079646,1707963039200,-239.38207,0.00032135,2]
[314079648,1707963039213,-239.38207,0.00032135,2]
[314079650,1707963039222,-343.544846,0.00032135,2]
[314079652,1707963039231,-343.544846,0.00032135,2]
[314079654,1707963039242,-507.91899621,0.00032135,2]
[314079656,1707963039251,-250.0,0.00032256,2]
[314079658,1707963039260,-151.0,0.00032256,2]
[314079660,1707963039270,-151.0,0.00032257,2]
[314079662,1707963039279,-151.0,0.00032257,2]
[314079664,1707963039288,-283.830273,0.00032257,2]
[314079666,1707963039298,-151.0,0.00032257,2]
[314079668,1707963039307,-151.0,0.00032257,2]
[314079670,1707963039319,-300.0,0.0003238,2]
[314079672,1707963039329,-300.0,0.0003276,2]
[314079674,1707963039338,-630.0070278,0.00032877,2]
[314079676,1707963039348,-166.666666,0.00032899,2]
[314079678,1707963039358,-266.30984896,0.00032908,2]
[314079680,1707963039367,-500.0,0.00032941,2]
[314079682,1707963039377,-300.0,0.00033141,2]
[314079684,1707963039386,-998.656612,0.00033366,2]
[314079686,1707963039396,-998.656612,0.00033366,2]
[314079688,1707963039406,-1069.203409,0.00033366,2]
[314079690,1707963039415,-1069.203409,0.00033366,2]
[314079692,1707963039427,-164.931106,0.00033421,2]
[314079694,1707963039436,-153.255471,0.00033421,2]
[314079696,1707963039445,-175.005243,0.00033421,2]
[314079698,1707963039454,-300.0,0.00033522,2]
[314079700,1707963039464,-150.42706364,0.00033523,2]
[314079702,1707963039472,-200.0,0.00033617,15]
[314079704,1707963039482,-750.0,0.00033626,2]
[314079706,1707963039491,-151.0,0.00033626,2]
[314079707,1707963039500,-239.38207,0.00033626,2]
[314079709,1707963039509,-239.38207,0.00033626,2]
[314079711,1707963039519,-343.544846,0.00033626,2]
[314079712,1707963039528,-343.544846,0.00033626,2]
[314079714,1707963039538,-166.666666,0.00033707,2]
[314079716,1707963039547,-189.99400917,0.0003377,2]
[314079717,1707963039556,-153.255471,0.00033838,2]
[314079719,1707963039566,-300.0,0.00033902,2]
[314079721,1707963039575,-266.30984896,0.00033918,2]
[314079723,1707963039584,-175.005243,0.00034256,2]
[314079724,1707963039593,-153.255471,0.00034256,2]
[314079726,1707963039602,-300.0,0.00034283,2]
[314079728,1707963039612,-1000.0,0.00034311,2]
[314079730,1707963039621,-300.0,0.00034664,2]
[314079731,1707963039631,-153.255471,0.00034674,2]
[314079733,1707963039640,-5000.0,0.00034829,7]
[314079735,1707963039649,-266.30984896,0.00034927,2]
[314079737,1707963039658,-1250.0,0.00034996,2]
[314079738,1707963039669,-998.656612,0.00034996,2]
[314079740,1707963039678,-998.656612,0.00034996,2]
[314079742,1707963039688,-1069.203409,0.00034996,2]
[314079744,1707963039697,-1069.203409,0.00034996,2]
[314079746,1707963039706,-300.0,0.00035045,3]
[314079747,1707963039715,-175.005243,0.00035092,2]
[314079749,1707963039724,-153.255471,0.00035092,2]
[314079751,1707963039734,-300.0,0.00035425,3]
[314079753,1707963039743,-721.08835243,0.00035681,2]
[314079754,1707963039752,-155.0,0.000358,2]
[314079756,1707963039761,-300.0,0.00035806,3]
[314079758,1707963039771,-266.30984896,0.00035936,2]
[314079760,1707963039779,-239.38207,0.00035956,2]
[314079762,1707963039788,-239.38207,0.00035956,2]
[314079763,1707963039797,-343.544846,0.00035956,2]
[314079765,1707963039807,-343.544846,0.00035956,2]
[314079767,1707963039815,-21255.0,0.00036,60]
[314079769,1707963039824,-281.99355911,0.00036,3]
[314079770,1707963039834,-998.656612,0.00036,2]
[314079772,1707963039843,-998.656612,0.00036,2]
[314079774,1707963039852,-1069.203409,0.00036,2]
[314079776,1707963039861,-1069.203409,0.00036,2]
[314079778,1707963039870,-45175.38475939,0.00036036,2]
[314079779,1707963039879,-151.0,0.00036036,2]
[314079781,1707963039888,-151.0,0.00036036,2]
[314079783,1707963039896,-151.0,0.00036036,2]
[314079785,1707963039905,-239.38207,0.00036036,2]
[314079786,1707963039914,-239.38207,0.00036036,2]
[314079788,1707963039925,-343.544846,0.00036036,2]
[314079790,1707963039934,-343.544846,0.00036036,2]
[314079791,1707963039943,-998.656612,0.00036036,2]
[314079793,1707963039953,-998.656612,0.00036036,2]
[314079795,1707963039962,-1069.203409,0.00036036,2]
[314079797,1707963039973,-1069.203409,0.00036036,2]
[314079799,1707963039982,-300.0,0.00036187,3]
[314079801,1707963039991,-300.0,0.00036567,3]
[314079803,1707963040000,-176.31955344,0.000367,2]
[314079804,1707963040009,-150.5,0.0003677,35]
[314079806,1707963040018,-213.45,0.0003677,35]
[314079809,1707963040028,-150.5,0.0003677,35]
[314079812,1707963040037,-150.5,0.0003677,35]
[314079814,1707963040046,-150.5,0.0003677,35]
[314079815,1707963040055,-683.0,0.0003677,35]
[314079817,1707963040064,-700.0,0.0003677,35]
[314079819,1707963040072,-150.5,0.0003678,35]
[314079821,1707963040082,-150.5,0.0003678,35]
[314079823,1707963040091,-150.5,0.0003678,35]
[314079824,1707963040100,-150.5,0.0003678,35]
[314079826,1707963040109,-150.5,0.0003678,35]
[314079828,1707963040118,-683.0,0.0003678,35]
[314079830,1707963040127,-700.0,0.0003678,35]
[314079832,1707963040136,-150.5,0.0003679,35]
[314079834,1707963040145,-150.5,0.0003679,35]
[314079836,1707963040154,-150.5,0.0003679,35]
[314079838,1707963040163,-150.5,0.0003679,35]
[314079839,1707963040175,-150.5,0.0003679,35]
[314079841,1707963040183,-683.0,0.0003679,35]
[314079843,1707963040192,-700.0,0.0003679,35]
[314079845,1707963040200,-4735.52,0.00036799,2]
[314079847,1707963040209,-4735.52,0.00036799,2]
[314079848,1707963040218,-4735.52,0.00036799,2]
[314079857,1707963040295,-501.1989517,0.00036799,15]
[314079859,1707963040305,-500.0,0.00036799,15]
[314079860,1707963040316,-500.0,0.00036799,15]
[314079862,1707963040325,-195.88767756,0.00036799,15]
[314079864,1707963040334,-500.0,0.00036799,15]
[314079866,1707963040342,-500.0,0.00036799,15]
[314079868,1707963040352,-500.0,0.00036799,15]
[314079870,1707963040362,-500.0,0.00036799,15]
[314079872,1707963040371,-614.08378413,0.00036799,15]
[314079873,1707963040380,-500.0,0.00036799,15]
[314079875,1707963040389,-500.0,0.00036799,15]
[314079877,1707963040399,-408.6932176,0.00036799,15]
[314079879,1707963040408,-480.99465093,0.00036799,15]
[314079881,1707963040419,-500.0,0.00036799,15]
[314079883,1707963040428,-500.0,0.00036799,15]
[314079884,1707963040437,-500.0,0.00036799,15]
[314079886,1707963040445,-500.0,0.00036799,15]
[314079888,1707963040455,-500.0,0.00036799,15]
[314079890,1707963040464,-300.0,0.00036799,15]
[314079892,1707963040472,-151.0,0.00036799,2]
[314079894,1707963040481,-239.38207,0.00036799,2]
[314079895,1707963040490,-239.38207,0.00036799,2]
[314079897,1707963040499,-239.38207,0.00036799,2]
[314079899,1707963040508,-239.38207,0.00036799,2]
[314079901,1707963040518,-343.544846,0.00036799,2]
[314079903,1707963040527,-343.544846,0.00036799,2]
[314079905,1707963040536,-343.544846,0.00036799,2]
[314079907,1707963040545,-343.544846,0.00036799,2]
[314079908,1707963040555,-998.656612,0.00036799,2]
[314079910,1707963040564,-998.656612,0.00036799,2]
[314079912,1707963040573,-998.656612,0.00036799,2]
[314079914,1707963040583,-998.656612,0.00036799,2]
[314079916,1707963040592,-1069.203409,0.00036799,2]
[314079918,1707963040601,-1069.203409,0.00036799,2]
[314079919,1707963040610,-1069.203409,0.00036799,2]
[314079921,1707963040618,-1069.203409,0.00036799,2]
[314079923,1707963040627,-500.09,0.000368,6]
[314079925,1707963040636,-383646.66887167,0.000368,30]
[314079927,1707963040653,-2620.72485754,0.000368,30]
[314079955,1707963041121,-558187.27750374,0.000368,30]
[314080147,1707963042916,-2050.65982282,0.000368,30]
[314082779,1707964232044,-1025.64761765,0.00032044,5]
[314082780,1707964232053,-33385.24943607,0.00032053,5]
[314082781,1707964232063,-24900.0,0.0003511,2]
[314082782,1707964232073,-250.0,0.00035257,15]
[314082783,1707964232082,-156.30632619,0.000358,2]
[314082784,1707964232091,-5000.0,0.00036252,7]
[314082786,1707964232100,-3692.21,0.00036689,3]
[314082787,1707964232109,-3076.85,0.00036689,3]
[314082788,1707964232118,-231.77,0.00036699,2]
[314082789,1707964232128,-231.77,0.00036699,2]
[314082790,1707964232137,-231.77,0.00036699,2]
[314082791,1707964232146,-231.77,0.00036699,2]
[314082792,1707964232155,-231.77,0.00036699,2]
[314082793,1707964232164,-231.77,0.00036699,2]
[314082795,1707964232174,-231.77,0.00036699,2]
[314082797,1707964232183,-231.77,0.00036699,2]
[314082799,1707964232193,-231.77,0.00036699,2]
[314082801,1707964232202,-381.03867372,0.00036699,15]
[314082803,1707964232210,-265.57378665,0.00036699,15]
[314082805,1707964232219,-241.81295279,0.00036699,15]
[314082807,1707964232228,-209.90373626,0.00036699,15]
[314082809,1707964232237,-500.0,0.00036699,15]
[314082811,1707964232246,-500.0,0.00036699,15]
[314082812,1707964232255,-500.0,0.00036699,15]
[314082814,1707964232264,-500.0,0.00036699,15]
[314082816,1707964232273,-218.78985588,0.00036699,15]
[314082818,1707964232282,-11627.05620005,0.000367,2]
[314083368,1707964241318,-1474.75447538,0.00032053,5]
[314083369,1707964241328,-1639.07053262,0.0003669,3]
[314083386,1707964243196,-924.96946738,0.0003669,3]
[314083387,1707964243206,-11641.37518547,0.000367,2]
[314083388,1707964243217,-1121.28671273,0.000367,2]
[314083708,1707965438291,-4622.85876103,0.00032076,5]
[314083712,1707965438348,-1758.44899745,0.00032076,5]
[314083714,1707965438357,-441.35276145,0.000346,2]
[314083715,1707965438367,-24900.0,0.00035282,2]
[314083717,1707965438376,-500.0,0.00035696,14]
[314083719,1707965438386,-360.53772676,0.00035696,14]
[314083721,1707965438395,-585.44416179,0.00035696,14]
[314083723,1707965438405,-155.0,0.00035699,2]
[314083725,1707965438413,-5000.0,0.00036263,7]
[314083726,1707965438422,-301.4578314,0.000363,2]
[314083728,1707965438431,-500.0,0.00036499,14]
[314083730,1707965438440,-615.18,0.00036499,14]
[314083732,1707965438449,-500.0,0.00036499,14]
[314083734,1707965438458,-10223.77199377,0.000365,2]
[314083736,1707965438467,-2136.7,0.0003659,3]
[314083737,1707965438478,-1780.58,0.0003659,3]
[314083739,1707965438488,-1483.82,0.0003659,3]
[314083741,1707965438497,-154.01369217,0.00036597,2]
[314083743,1707965438506,-1751.70914203,0.00036599,3]
[314083745,1707965438515,-500.0,0.00036599,14]
[314083746,1707965438525,-615.18,0.00036599,14]
[314083748,1707965438534,-500.0,0.00036599,14]
[314083750,1707965438544,-36042.40736816,0.000366,2]
[314083752,1707965438553,-233.8769,0.00036663,2]
[314083754,1707965438562,-246.53220621,0.00036696,15]
[314083756,1707965438571,-310.99,0.00036696,2]
[314083758,1707965438580,-310.99,0.00036696,2]
[314083760,1707965438589,-310.99,0.00036696,2]
[314083762,1707965438598,-310.99,0.00036696,2]
[314083763,1707965438607,-310.99,0.00036696,2]
[314083765,1707965438617,-310.99,0.00036696,2]
[314083767,1707965438626,-310.99,0.00036696,2]
[314083769,1707965438635,-310.99,0.00036696,2]
[314083771,1707965438644,-310.99,0.00036696,2]
[314083773,1707965438653,-10508.69,0.00036697,14]
[314083774,1707965438662,-10508.69,0.00036697,14]
[314083776,1707965438671,-10508.69,0.00036697,14]
[314083778,1707965438680,-10508.69,0.00036697,14]
[314083780,1707965438688,-10508.69,0.00036697,14]
[314083782,1707965438697,-10508.69,0.00036697,14]
[314083784,1707965438706,-10508.69,0.00036697,14]
[314083786,1707965438714,-10508.69,0.00036697,14]
[314083787,1707965438723,-10508.69,0.00036697,14]
[314083789,1707965438732,-1428.93,0.00036697,14]
[314083791,1707965438741,-1428.93,0.00036697,14]
[314083793,1707965438750,-1428.93,0.00036697,14]
[314083794,1707965438759,-1428.93,0.00036697,14]
[314083796,1707965438769,-1428.93,0.00036697,14]
[314083797,1707965438778,-1428.93,0.00036697,14]
[314083798,1707965438786,-1428.93,0.00036697,14]
[314083799,1707965438795,-1428.93,0.00036697,14]
[314083800,1707965438804,-1428.93,0.00036697,14]
[314083801,1707965438813,-504.79916707,0.00036697,14]
[314083802,1707965438822,-500.0,0.00036697,14]
[314083803,1707965438831,-500.0,0.00036697,14]
[314083804,1707965438840,-500.0,0.00036697,14]
[314083805,1707965438849,-500.0,0.00036697,14]
[314083806,1707965438858,-520.00528314,0.00036697,14]